bitfinex/quotes_SOLUSD_20250330
["timestamp","ask_amount","ask_price","bid_price","bid_amount"]
[1743354080981,39.06718804,124.05,123.98,89.12402314]
[1743354081190,20.35453918,124.03,123.98,88.8397]
[1743354081483,20.35453918,124.02,123.98,88.8397]
[1743354081682,20.35453918,124.01,123.98,88.8397]
[1743354082012,18.64964886,123.98,123.95,80.9997]
[1743354082200,20.35453918,123.97,123.93,8.0688]
[1743354082389,20.35453918,123.97,123.92,81.0297]
[1743354082390,20.35453918,123.97,123.92,96.9592]
[1743354082697,18.64964886,123.98,123.92,88.8697]
[1743354082698,20.35453918,123.96,123.92,88.8697]
[1743354083000,20.35453918,123.96,123.92,0.03]
[1743354083001,20.35453918,123.94,123.92,0.03]
[1743354083511,28.05473918,123.96,123.92,8.0995]
[1743354084003,28.05473918,123.96,123.92,0.03]
[1743354084216,0.28432314,123.99,123.92,81.31402314]
[1743354084217,26.42723918,123.99,123.92,81.31402314]
[1743354084378,6.0727,123.99,123.95,20.0]
[1743354084582,26.42723918,123.99,123.95,7.88]
[1743354085614,20.35453918,123.97,123.95,7.88]
[1743354085800,18.64964886,123.98,123.95,7.88]
[1743354085801,39.00418804,123.98,123.95,7.88]
[1743354086310,39.00418804,123.98,123.95,15.9476]
[1743354086604,39.00418804,123.98,123.95,7.88]
[1743354086809,20.35453918,123.97,123.95,7.88]
[1743354087107,39.00418804,123.98,123.95,7.88]
[1743354087400,20.35453918,123.98,123.95,7.88]
[1743354087606,20.35453918,123.98,123.95,15.9475]
[1743354087807,45.07688804,123.99,123.95,15.9475]
[1743354088616,6.0727,123.99,123.95,15.9475]
[1743354089194,26.42723918,123.99,123.95,15.9475]
[1743354090316,6.0727,123.99,123.95,36.1169]
[1743354090491,20.35453918,124.01,123.95,117.1166]
[1743354091001,20.35453918,124.0,123.95,117.1166]
[1743354091885,20.35453918,123.99,123.95,117.1166]
[1743354092090,20.35453918,123.98,123.95,96.9472]
[1743354092592,20.35453918,123.99,123.95,96.9472]
[1743354093093,20.35453918,124.0,123.95,96.9472]
[1743354094998,20.35453918,123.99,123.95,96.9472]
[1743354096307,20.35453918,123.99,123.95,96.9772]
[1743354096913,20.35453918,123.99,123.95,117.1466]
[1743354097512,20.35453918,123.96,123.95,8.0975]
[1743354099020,39.00418804,123.96,123.95,0.03]
[1743354099203,59.50088879,123.96,123.95,0.03]
[1743354099510,59.64305036,123.96,123.95,0.03]
[1743354099690,39.28851118,123.96,123.95,0.03]
[1743354100309,39.00418804,123.96,123.95,0.03]
[1743354100811,21.94603918,123.97,123.95,0.03]
[1743354101115,20.35453918,123.99,123.95,0.03]
[1743354101517,20.35453918,123.98,123.95,0.03]
[1743354102110,39.00418804,123.99,123.95,0.03]
[1743354103202,39.00418804,123.99,123.95,8.0977]
[1743354104416,1.5575,124.0,123.95,28.2671]
[1743354104608,20.35453918,123.99,123.95,109.2668]
[1743354105203,20.35453918,123.98,123.95,89.0974]
[1743354105720,20.35453918,123.96,123.95,81.0297]
[1743354105919,20.35453918,123.96,123.95,0.03]
[1743354106820,20.35453918,123.97,123.95,0.03]
[1743354107612,39.00418804,123.96,123.95,0.03]
[1743354109522,18.64964886,123.96,123.95,0.03]
[1743354109931,47.07128804,123.96,123.95,0.03]
[1743354110104,67.85231193,123.96,123.95,0.03]
[1743354110424,76.00741193,123.96,123.95,0.03]
[1743354110925,76.1495735,123.96,123.95,0.03]
[1743354111145,0.28432314,123.95,123.92,0.03]
[1743354111427,39.28851118,123.93,123.92,0.03]
[1743354114803,47.49967275,123.93,123.92,0.03]
[1743354117705,25.10963357,123.92,123.87,0.03]
[1743354117910,39.28851118,123.88,123.87,0.03]
[1743354119726,41.01537275,123.88,123.87,0.03]
[1743354119906,47.04887275,123.88,123.87,0.03]
[1743354120813,55.12117275,123.88,123.87,0.03]
[1743354122028,47.04887275,123.88,123.87,0.03]
[1743354122834,47.19103432,123.88,123.87,0.03]
[1743354123023,39.28851118,123.88,123.87,0.03]
[1743354125736,47.64513432,123.88,123.87,0.03]
[1743354126714,21.72686157,123.86,123.85,0.03]
[1743354127021,81.36991193,123.86,123.85,0.03]
[1743354127542,89.44351193,123.86,123.85,0.03]
[1743354128237,69.08897275,123.86,123.85,0.03]
[1743354128445,61.01537275,123.86,123.85,0.03]
[1743354129223,59.43067275,123.86,123.85,0.03]
[1743354129936,39.00418804,123.86,123.85,0.03]
[1743354130833,18.64964886,123.86,123.85,0.03]
[1743354132337,39.00418804,123.86,123.85,0.03]
[1743354133315,39.57283432,123.86,123.85,0.03]
[1743354134130,47.64643432,123.86,123.85,0.03]
[1743354134940,75.7209735,123.86,123.85,0.03]
[1743354135244,55.36643432,123.86,123.85,0.03]
[1743354137035,100.17613357,123.85,123.84,0.03]
[1743354137237,100.17613357,123.85,123.82,0.03]
[1743354137238,39.43067275,123.83,123.82,0.03]
[1743354138218,47.50617275,123.83,123.82,0.03]
[1743354138637,39.28851118,123.83,123.82,0.03]
[1743354138828,47.50617275,123.83,123.82,0.03]
[1743354139434,39.28851118,123.83,123.82,0.03]
[1743354142759,18.64964886,123.83,123.82,0.03]
[1743354142938,20.35453918,123.86,123.82,0.03]
[1743354143268,39.00418804,123.84,123.82,0.03]
[1743354143550,18.64964886,123.85,123.82,0.03]
[1743354144447,18.64964886,123.85,123.82,8.1062]
[1743354148155,39.00418804,123.85,123.82,8.1062]
[1743354149051,39.00418804,123.83,123.82,0.03]
[1743354150031,39.28851118,123.83,123.82,0.03]
[1743354152127,39.00418804,123.83,123.82,0.03]
[1743354152336,18.64964886,123.83,123.82,0.03]
[1743354152557,20.35453918,123.85,123.82,0.03]
[1743354152859,18.64964886,123.84,123.82,0.03]
[1743354153557,20.35453918,123.83,123.82,0.03]
[1743354154068,18.64964886,123.83,123.82,0.03]
[1743354156369,18.64964886,123.84,123.82,0.03]
[1743354156646,18.933972,123.86,123.82,0.03]
[1743354156850,18.64964886,123.86,123.82,0.03]
[1743354157048,0.063,123.84,123.82,1.6857]
[1743354157249,0.063,123.84,123.83,8.0755]
[1743354163452,0.063,123.84,123.83,8.35982314]
[1743354163839,0.063,123.84,123.83,89.35952314]
[1743354164653,0.063,123.92,123.83,150.21064628]
[1743354164854,18.64964886,123.91,123.83,288.51064628]
[1743354165055,18.64964886,123.91,123.86,20.0]
[1743354165252,18.71264886,123.92,123.86,27.64]
[1743354165448,0.063,123.92,123.87,7.7797]
[1743354165655,0.063,123.92,123.87,88.7794]
[1743354165855,0.063,123.92,123.88,0.28432314]
[1743354166740,0.063,123.92,123.89,28.2507]
[1743354167860,0.063,123.92,123.89,109.2504]
[1743354168067,0.063,123.92,123.9,0.28432314]
[1743354168247,0.063,123.92,123.91,7.64]
[1743354168843,0.063,123.92,123.91,15.99462314]
[1743354169044,0.063,123.92,123.91,17.55092314]
[1743354171368,0.0001,123.92,123.91,105.05834628]
[1743354174768,0.063,123.97,123.93,0.56864628]
[1743354174970,0.063,123.97,123.93,219.86824628]
[1743354175867,0.063,123.97,123.95,0.28432314]
[1743354176060,0.063,123.97,123.96,7.64]
[1743354177876,0.063,123.97,123.96,15.7071]
[1743354178774,0.063,123.97,123.96,7.64]
[1743354178962,0.063,123.97,123.94,15.7084]
[1743354179550,0.063,123.97,123.92,8.0691]
[1743354179551,18.64964886,123.96,123.92,8.0691]
[1743354179755,20.35453918,123.95,123.91,15.71]
[1743354179950,20.35453918,123.95,123.9,15.711]
[1743354180174,20.35453918,123.94,123.9,15.711]
[1743354181049,18.64964886,123.96,123.9,8.071]
[1743354181274,20.35453918,123.95,123.9,15.711]
[1743354181660,20.35453918,123.93,123.89,96.7111]
[1743354182275,18.64964886,123.95,123.89,7.64]
[1743354182276,20.35453918,123.92,123.89,7.64]
[1743354182457,20.78102389,123.96,123.87,8.0727]
[1743354182458,20.35453918,123.91,123.87,8.0727]
[1743354184076,20.35453918,123.89,123.86,88.6396]
[1743354184277,20.35453918,123.88,123.86,7.64]
[1743354184460,20.35453918,123.89,123.86,7.64]
[1743354184654,39.00418804,123.88,123.84,0.03]
[1743354184871,39.00418804,123.86,123.84,0.03]
[1743354185069,39.00418804,123.85,123.84,0.03]
[1743354186564,18.64964886,123.85,123.84,0.03]
[1743354186768,1.69986157,123.9,123.84,0.03]
[1743354186982,18.64964886,123.89,123.84,0.03]
[1743354187297,39.00418804,123.89,123.84,7.67]
[1743354187663,20.35453918,123.88,123.84,7.67]
[1743354187875,39.00418804,123.87,123.84,7.67]
[1743354188184,39.00418804,123.87,123.84,15.7446]
[1743354189463,20.35453918,123.85,123.84,0.03]
[1743354189675,39.00418804,123.85,123.84,0.03]
[1743354190385,39.28851118,123.85,123.84,0.03]
[1743354193892,18.933972,123.85,123.84,0.03]
[1743354194186,39.28851118,123.85,123.84,0.03]
[1743354197185,39.00418804,123.85,123.84,0.03]
[1743354197386,18.64964886,123.85,123.84,0.03]
[1743354197769,39.00418804,123.85,123.84,0.03]
[1743354198388,18.64964886,123.85,123.84,0.03]
[1743354200374,39.00418804,123.85,123.84,0.03]
[1743354201398,39.43067275,123.85,123.84,0.03]
[1743354201694,69.43511193,123.85,123.84,0.03]
[1743354201894,75.58251193,123.85,123.84,0.03]
[1743354205692,75.7246735,123.85,123.84,0.03]
[1743354205899,83.3646735,123.85,123.84,0.03]
[1743354206086,164.4646735,123.85,123.84,0.03]
[1743354207997,164.4646735,123.85,123.82,0.03]
[1743354207998,100.17613357,123.84,123.82,0.03]
[1743354208196,120.53067275,123.83,123.82,0.03]
[1743354209299,128.74833432,123.83,123.82,0.03]
[1743354209909,128.60617275,123.83,123.82,0.03]
[1743354210207,128.74833432,123.83,123.82,0.03]
[1743354212178,128.60617275,123.83,123.82,0.03]
[1743354212804,128.74833432,123.83,123.82,0.03]
[1743354216000,19.07613357,123.82,123.81,0.03]
[1743354216199,39.43067275,123.82,123.81,0.03]
[1743354217590,47.50687275,123.82,123.81,0.03]
[1743354219905,47.64903432,123.82,123.81,0.03]
[1743354222214,39.57283432,123.82,123.81,0.03]
[1743354222413,18.64964886,123.82,123.81,0.03]
[1743354222710,39.28851118,123.82,123.81,0.03]
[1743354223307,18.64964886,123.82,123.81,0.03]
[1743354223500,18.64964886,123.84,123.81,0.03]
[1743354224092,18.64964886,123.83,123.81,0.03]
[1743354224292,0.28432314,123.85,123.81,0.03]
[1743354224498,18.64964886,123.84,123.81,0.03]
[1743354225404,18.64964886,123.85,123.81,6.2144]
[1743354226101,18.64964886,123.84,123.81,6.2144]
[1743354227014,39.00418804,123.82,123.81,0.03]
[1743354228916,39.28851118,123.82,123.81,0.03]
[1743354231320,47.50687275,123.82,123.81,0.03]
[1743354234418,38.3375258,123.82,123.81,0.03]
[1743354234623,40.63886232,123.82,123.81,0.03]
[1743354236203,59.28851118,123.82,123.81,0.03]
[1743354237215,39.28851118,123.82,123.81,0.03]
[1743354237522,18.64964886,123.82,123.81,0.03]
[1743354238018,18.64964886,123.83,123.81,0.03]
[1743354239319,0.063,123.82,123.81,0.03]
[1743354240602,20.41753918,123.82,123.81,0.03]
[1743354241003,39.35151118,123.82,123.81,0.03]
[1743354242722,47.42771118,123.82,123.81,0.03]
[1743354242922,47.56987275,123.82,123.81,0.03]
[1743354243423,39.35151118,123.82,123.81,0.03]
[1743354244407,47.42771118,123.82,123.81,0.03]
[1743354244609,47.56987275,123.82,123.81,0.03]
[1743354246624,47.71203432,123.82,123.81,0.03]
[1743354247017,39.63583432,123.82,123.81,0.03]
[1743354248214,39.35151118,123.82,123.81,0.03]
[1743354250032,47.71203432,123.82,123.81,0.03]
[1743354252019,20.0,123.8,123.79,0.03]
[1743354252233,40.35453918,123.8,123.79,0.03]
[1743354252543,59.28851118,123.8,123.79,0.03]
[1743354253951,67.36601118,123.8,123.79,0.03]
[1743354256040,59.28851118,123.8,123.79,0.03]
[1743354256226,59.43067275,123.8,123.79,0.03]
[1743354256738,59.28851118,123.8,123.79,0.03]
[1743354257237,38.64964886,123.8,123.79,0.03]
[1743354257560,18.64964886,123.8,123.79,0.03]
[1743354258050,39.00418804,123.8,123.79,0.03]
[1743354260554,47.65033432,123.8,123.79,0.03]
[1743354264139,47.65033432,123.8,123.78,0.03]
[1743354264140,19.07613357,123.79,123.78,0.03]
[1743354264459,38.933972,123.77,123.76,0.03]
[1743354264640,59.28851118,123.77,123.76,0.03]
[1743354264835,59.43067275,123.77,123.76,0.03]
[1743354265938,67.51017275,123.77,123.76,0.03]
[1743354266134,19.07613357,123.76,123.74,0.03]
[1743354266459,39.00418804,123.75,123.74,0.03]
[1743354266754,39.14634961,123.75,123.74,0.03]
[1743354267962,47.65363432,123.75,123.74,0.03]
[1743354269275,55.29363432,123.75,123.74,0.03]
[1743354269578,19.21829514,123.74,123.72,0.03]
[1743354269762,59.9273735,123.73,123.72,0.03]
[1743354269970,141.0273735,123.73,123.72,0.03]
[1743354270144,19.21829514,123.72,123.71,0.03]
[1743354270462,59.9273735,123.72,123.66,0.03]
[1743354270663,39.00418804,123.67,123.66,0.03]
[1743354271051,18.64964886,123.68,123.66,0.03]
[1743354271265,39.00418804,123.68,123.66,0.03]
[1743354272857,20.35453918,123.69,123.66,0.03]
[1743354273163,20.35453918,123.67,123.66,0.03]
[1743354273357,20.35453918,123.68,123.66,0.03]
[1743354274552,20.35453918,123.67,123.66,0.03]
[1743354276045,20.35453918,123.68,123.66,0.03]
[1743354276458,20.35453918,123.67,123.66,0.03]
[1743354276638,20.35453918,123.68,123.66,0.03]
[1743354277645,20.35453918,123.69,123.66,0.03]
[1743354278050,20.35453918,123.68,123.66,0.03]
[1743354278964,20.35453918,123.69,123.66,0.03]
[1743354281554,20.35453918,123.68,123.66,0.03]
[1743354281764,20.35453918,123.67,123.66,0.03]
[1743354282871,39.00418804,123.67,123.66,0.03]
[1743354284258,47.51667275,123.67,123.66,0.03]
[1743354285462,39.00418804,123.67,123.66,0.03]
[1743354285869,20.35453918,123.69,123.66,0.03]
[1743354287450,0.063,123.71,123.66,0.03]
[1743354287662,20.41753918,123.71,123.66,0.03]
[1743354290670,0.063,123.71,123.66,0.03]
[1743354291777,20.35453918,123.67,123.66,0.03]
[1743354294585,20.35453918,123.68,123.66,0.03]
[1743354294973,20.35453918,123.67,123.66,0.03]
[1743354295174,20.35453918,123.68,123.66,0.03]
[1743354296875,39.00418804,123.69,123.66,0.03]
[1743354297994,20.35453918,123.69,123.66,0.03]
[1743354298371,20.35453918,123.7,123.66,0.03]
[1743354298792,0.063,123.71,123.67,1.6171]
[1743354298994,0.063,123.71,123.68,7.64]
[1743354299903,0.063,123.71,123.69,8.0847]
[1743354302794,0.063,123.71,123.68,15.725]
[1743354307604,20.35453918,123.7,123.67,8.0857]
[1743354308324,20.41753918,123.71,123.67,8.0857]
[1743354308521,0.063,123.71,123.67,8.0857]
[1743354309028,0.063,123.71,123.67,28.3007]
[1743354309622,0.063,123.71,123.68,0.03]
[1743354312099,0.063,123.71,123.69,1.6342]
[1743354313314,0.063,123.71,123.7,8.084]
[1743354317225,0.0001,123.71,123.7,8.36832314]
[1743354322101,0.0001,123.71,123.7,8.084]
[1743354322527,0.0001,123.71,123.69,0.03]
[1743354323398,0.0001,123.71,123.69,8.1147]
[1743354324122,20.35463918,123.71,123.69,0.03]
[1743354324319,39.00418804,123.7,123.69,0.03]
[1743354325214,20.35463918,123.71,123.69,0.03]
[1743354325404,0.0001,123.71,123.69,0.03]
[1743354325821,20.35463918,123.71,123.69,0.03]
[1743354326824,0.0001,123.71,123.69,0.03]
[1743354327607,0.0001,123.71,123.69,81.0296]
[1743354328013,0.0001,123.71,123.7,8.084]
[1743354328224,0.0001,123.71,123.7,8.36832314]
[1743354331029,0.0001,123.71,123.7,89.36792314]
[1743354334329,0.0001,123.71,123.7,89.39792314]
[1743354336206,83.06572314,123.82,123.7,89.39792314]
[1743354336207,20.41753918,123.81,123.73,20.0]
[1743354336410,0.063,123.81,123.75,28.2828]
[1743354337618,0.063,123.81,123.75,109.2824]
[1743354338219,0.063,123.81,123.76,0.14216157]
[1743354338422,0.063,123.81,123.77,8.0795]
[1743354339029,0.063,123.81,123.76,101.34066157]
[1743354339030,18.64964886,123.8,123.76,89.0795]
[1743354339227,39.00418804,123.8,123.76,89.0795]
[1743354340065,0.063,123.81,123.77,0.28432314]
[1743354340435,0.063,123.81,123.78,28.2759]
[1743354343017,0.063,123.81,123.78,8.0788]
[1743354346444,0.063,123.81,123.77,89.079]
[1743354346739,0.063,123.81,123.74,20.48792314]
[1743354346740,40.63148804,123.79,123.73,96.7014]
[1743354347037,20.35453918,123.78,123.73,96.7014]
[1743354347350,18.64964886,123.79,123.73,116.9066]
[1743354347721,39.00418804,123.79,123.73,96.7014]
[1743354348736,47.08238804,123.79,123.73,96.7014]
[1743354350246,39.00418804,123.79,123.73,96.7014]
[1743354352953,18.64964886,123.79,123.73,96.7014]
[1743354353250,18.64964886,123.79,123.73,116.9066]
[1743354353456,39.00418804,123.79,123.73,116.9066]
[1743354354256,47.08238804,123.79,123.73,116.9066]
[1743354354440,20.35453918,123.78,123.73,96.7014]
[1743354355039,47.08238804,123.79,123.73,96.7014]
[1743354355643,20.35453918,123.78,123.73,96.7014]
[1743354356051,18.64964886,123.79,123.73,96.7014]
[1743354356366,18.64964886,123.79,123.73,116.9066]
[1743354356542,18.64964886,123.79,123.73,109.2866]
[1743354356742,18.64964886,123.76,123.72,8.0825]
[1743354357048,39.00418804,123.76,123.7,81.0296]
[1743354357243,39.00418804,123.74,123.7,81.0296]
[1743354358055,18.64964886,123.74,123.7,89.1134]
[1743354358256,18.64964886,123.74,123.71,0.03]
[1743354358465,39.28851118,123.77,123.71,0.03]
[1743354359355,20.35453918,123.76,123.71,0.03]
[1743354361864,28.43463918,123.76,123.71,0.03]
[1743354362061,20.35453918,123.74,123.71,0.03]
[1743354362272,39.00418804,123.72,123.71,0.03]
[1743354363359,47.08688804,123.72,123.71,0.03]
[1743354364075,48.61998804,123.72,123.71,0.03]
[1743354364367,48.76214961,123.72,123.71,0.03]
[1743354365774,69.5431735,123.72,123.71,0.03]
[1743354366145,49.18863432,123.72,123.71,0.03]
[1743354366376,69.5431735,123.72,123.71,0.03]
[1743354366879,19.07613357,123.71,123.7,0.03]
[1743354367084,39.43067275,123.71,123.7,0.03]
[1743354367379,19.07613357,123.69,123.68,0.03]
[1743354367584,39.43067275,123.69,123.68,0.03]
[1743354367878,47.51537275,123.69,123.68,0.03]
[1743354368966,53.94966161,123.69,123.68,0.03]
[1743354369174,38.933972,123.67,123.66,0.03]
[1743354369490,38.933972,123.67,123.46,74.10437621]
[1743354369491,0.5,123.41,123.38,276.28674967]
[1743354369658,20.85453918,123.39,123.38,276.28674967]
[1743354369867,39.50418804,123.39,123.38,276.28674967]
[1743354370162,0.5,123.39,123.38,276.28674967]
[1743354370462,20.85453918,123.39,123.38,276.28674967]
[1743354370666,40.07283432,123.39,123.38,276.28674967]
[1743354370963,60.4273735,123.39,123.38,150.29842068]
[1743354371176,68.5316735,123.39,123.38,136.38053512]
[1743354371375,68.5316735,123.39,123.38,105.99750067]
[1743354371579,69.0316735,123.39,123.38,33.66919575]
[1743354371779,0.5,123.36,123.35,150.70186345]
[1743354371976,85.54060324,123.36,123.35,150.70186345]
[1743354372175,66.3223081,123.36,123.15,6.34168745]
[1743354372372,0.5,123.24,123.1,198.9147]
[1743354372587,0.5,123.26,123.13,20.3032]
[1743354372777,0.5,123.25,123.13,158.6032]
[1743354372981,0.5,123.25,123.14,8.32]
[1743354373182,0.5,123.25,123.15,8.32]
[1743354373890,0.5,123.29,123.16,1.5195]
[1743354374097,136.445572,123.21,123.17,6.5799]
[1743354374393,128.112372,123.21,123.17,87.5795]
[1743354374892,128.112372,123.21,123.2,20.0]
[1743354375073,128.112372,123.21,123.2,8.34]
[1743354375268,128.112372,123.21,123.17,89.1184]
[1743354375477,128.112372,123.21,123.18,202.54267539]
[1743354375875,128.112372,123.21,123.18,163.0306152]
[1743354376469,15.78357594,123.2,123.18,163.0306152]
[1743354376694,128.112372,123.21,123.2,20.0]
[1743354376889,5.44375909,123.21,123.18,126.58235932]
[1743354377096,5.44375909,123.21,123.19,8.32]
[1743354378776,0.5,123.23,123.19,8.32]
[1743354378979,0.5,123.22,123.19,8.32]
[1743354379378,0.5,123.23,123.09,60.6202]
[1743354379587,0.5,123.19,123.14,8.1208]
[1743354379793,0.5,123.2,123.14,8.1208]
[1743354379991,0.5,123.21,123.14,8.1208]
[1743354380196,0.5,123.23,123.17,20.0]
[1743354380395,0.5,123.24,123.18,8.36]
[1743354380596,0.5,123.25,123.18,8.36]
[1743354380896,0.5,123.29,123.22,20.0]
[1743354381081,0.5,123.27,123.23,8.36]
[1743354381394,0.5,123.26,123.23,8.36]
[1743354381694,0.5,123.27,123.23,16.4747]
[1743354381896,0.5,123.28,123.23,16.4747]
[1743354382098,0.5,123.31,123.23,16.4747]
[1743354382283,0.5,123.31,123.23,36.7619]
[1743354382482,0.5,123.29,123.23,36.7619]
[1743354382688,0.5,123.3,123.23,36.7619]
[1743354383197,0.5,123.31,123.23,36.7919]
[1743354383496,0.5,123.3,123.23,36.7919]
[1743354383796,0.78432314,123.3,123.23,8.1447]
[1743354383979,0.5,123.26,123.24,8.34]
[1743354384601,0.5,123.27,123.24,8.34]
[1743354386682,0.5,123.27,123.24,16.4537]
[1743354387505,0.5,123.26,123.24,16.4537]
[1743354387804,0.5,123.27,123.24,16.4537]
[1743354388004,0.5,123.29,123.24,16.4537]
[1743354388990,0.5,123.29,123.24,36.7393]
[1743354389215,0.5,123.31,123.24,36.7393]
[1743354389520,0.5,123.34,123.27,20.0]
[1743354389887,81.1,123.35,123.27,20.0]
[1743354389888,0.5,123.35,123.27,20.0]
[1743354390204,0.5,123.34,123.27,20.0]
[1743354390786,0.5,123.34,123.28,28.3906]
[1743354390993,0.5,123.36,123.29,222.76]
[1743354391296,0.5,123.36,123.32,20.0]
[1743354391594,0.5,123.38,123.32,20.0]
[1743354391794,0.5,123.37,123.32,20.0]
[1743354392387,0.5,123.36,123.32,20.0]
[1743354392812,0.78432314,123.37,123.3,8.1103]
[1743354393118,0.5,123.33,123.3,28.386]
[1743354393289,0.5,123.34,123.3,28.386]
[1743354393485,0.5,123.33,123.3,28.386]
[1743354394285,0.5,123.34,123.3,28.386]
[1743354394692,0.5,123.36,123.3,28.386]
[1743354394891,0.5,123.35,123.3,28.386]
[1743354395396,0.02400001,123.34,123.3,28.386]
[1743354396295,0.52400001,123.34,123.3,28.386]
[1743354396483,0.5,123.33,123.3,28.386]
[1743354396686,0.02400001,123.32,123.3,28.386]
[1743354396886,0.02400001,123.32,123.31,8.26]
[1743354398395,1e-08,123.32,123.31,8.26]
[1743354398800,1e-08,123.32,123.31,16.3696]
[1743354402107,0.50000001,123.32,123.28,8.1116]
[1743354402401,1e-08,123.32,123.28,28.3906]
[1743354403182,1e-08,123.32,123.28,20.279]
[1743354403594,18.93397201,123.32,123.28,20.279]
[1743354404200,1e-08,123.32,123.28,20.279]
[1743354408791,1e-08,123.32,123.28,28.439]
[1743354409212,1e-08,123.32,123.28,20.279]
[1743354409389,1e-08,123.32,123.27,16.2722]
[1743354409390,18.64964886,123.31,123.27,16.2722]
[1743354409987,1e-08,123.32,123.27,77.1141]
[1743354410399,81.1,123.31,123.27,36.5528]
[1743354410596,0.14216157,123.3,123.27,28.3928]
[1743354410907,18.933972,123.3,123.27,28.3928]
[1743354411611,18.79181043,123.3,123.27,28.3928]
[1743354411811,18.79181043,123.3,123.25,28.3974]
[1743354412496,81.1,123.31,123.25,28.3974]
[1743354412699,113.98711413,123.31,123.25,28.3974]
[1743354412895,18.64964886,123.3,123.25,8.1135]
[1743354413102,32.88711413,123.28,123.25,8.1135]
[1743354413495,32.88711413,123.29,123.25,8.1135]
[1743354413793,132.63676299,123.3,123.25,28.3974]
[1743354413993,81.1,123.3,123.21,109.5689]
[1743354415008,81.1,123.3,123.21,150.15]
[1743354415208,113.98711413,123.3,123.21,109.5689]
[1743354415511,1e-08,123.32,123.24,20.0]
[1743354415688,1e-08,123.32,123.25,8.22]
[1743354416107,1e-08,123.32,123.26,28.3952]
[1743354416507,32.88711414,123.32,123.26,28.3952]
[1743354418998,32.95011414,123.32,123.26,28.3952]
[1743354419319,0.06300001,123.32,123.26,28.3952]
[1743354420625,0.06300001,123.32,123.26,109.5244]
[1743354420812,0.06300001,123.32,123.26,324.0044]
[1743354421608,81.163,123.36,123.26,324.0044]
[1743354421918,0.063,123.36,123.27,0.28432314]
[1743354422423,0.063,123.36,123.28,68.9486]
[1743354422815,0.063,123.36,123.31,20.0]
[1743354422998,0.063,123.36,123.32,8.16]
[1743354424005,32.95011413,123.36,123.32,8.16]
[1743354424198,32.95011413,123.36,123.33,8.1083]
[1743354424423,0.063,123.36,123.33,8.1083]
[1743354424615,0.063,123.36,123.33,28.3791]
[1743354425906,0.063,123.4,123.33,68.9207]
[1743354427239,0.063,123.4,123.33,76.9458]
[1743354427542,0.063,123.4,123.36,20.0]
[1743354427732,0.063,123.4,123.37,8.12]
[1743354428414,0.063,123.4,123.38,8.105]
[1743354431323,0.063,123.4,123.38,16.265]
[1743354434139,0.063,123.45,123.38,36.5276]
[1743354434311,113.98711413,123.44,123.38,8.105]
[1743354434629,32.88711413,123.43,123.38,8.105]
[1743354435209,18.79181043,123.43,123.38,8.105]
[1743354435727,81.1,123.44,123.38,28.3676]
[1743354436132,0.063,123.45,123.38,28.3676]
[1743354436638,0.063,123.45,123.39,20.0]
[1743354436836,0.063,123.45,123.4,8.18]
[1743354438110,0.063,123.45,123.41,7.7941]
[1743354438530,0.063,123.45,123.42,28.3584]
[1743354441610,0.063,123.45,123.42,8.1024]
[1743354441810,0.063,123.45,123.41,8.103]
[1743354442229,0.063,123.45,123.4,8.16]